Cogmind - Beta 13 @@@ ROGUE MODE // 2024.04.09 @ 17:50:23 Player: JunkerBernd Result: Self-destructed Performance ------------- Evolutions (0) 0 Regions Visited (4) 800 Robots Destroyed (9) 45 Value Destroyed (205) 205 Prototype IDs (0) 0 Alien Tech Used (0) 0 Bonus (385) 385 TOTAL SCORE: 1435 Bonus ------- Follower Combat Kills 85 Aligned with FarCom 300 Cogmind --------- Core Integrity 27/250 Matter 300/300 Energy 92/100 System Corruption 0% Temperature Cool (0) Movement Core (500) Ox9 Location -9/Mines Parts ------- > --- POWER (1) -------- (None) > --- PROPULSION (2) --- (None) > --- UTILITY (2) ------ Large Storage Unit Field Recycling Unit > --- WEAPON (2) ------- Light Assault Rifle > --- INVENTORY (15) --- Ion Engine Ion Engine Ion Engine Light Treads Large Storage Unit Medium Matter Pod (100) Visual Processing Unit Sensor Array Transport Network Coupler Small Laser Light Assault Rifle XL Autogun Array Peak State ------------ > --- POWER ------------ Light Nuclear Core > --- PROPULSION ------- Light Treads Light Treads > --- UTILITY ---------- Large Storage Unit Field Recycling Unit > --- WEAPON ----------- Light Assault Rifle Grenade Launcher > --- INVENTORY -------- Ion Engine Ion Engine Ion Engine Light Treads Large Storage Unit Medium Matter Pod Visual Processing Unit Sensor Array Transport Network Coupler Small Laser Light Assault Rifle XL Autogun Array [Rating: 14] Favorites ----------- Power Ion Engine Engine Ion Engine Power Core Light Nuclear Core Propulsion Light Treads Treads Light Treads Utility Field Recycling Unit Device Field Recycling Unit Storage Large Storage Unit Weapon Light Assault Rifle Energy Gun Small Laser Ballistic Gun Light Assault Rifle Launcher Grenade Launcher Build | -11 -10 -10 -10 -9 ------- Run | Yrd Mat Min Exi Min Slots Evolved . | . . . . . Power . | . . . . . Propulsion . | . . . . . Utility . | . . . . . Weapon . | . . . . . Parts Attached 10 | 6 3 1 . . Power 2 | 1 . 1 . . Engine 1 | 1 . . . . Core 1 | . . 1 . . Reactor . | . . . . . Propulsion 2 | 2 . . . . Treads 2 | 2 . . . . Leg . | . . . . . Wheel . | . . . . . Hover . | . . . . . Flight . | . . . . . Utility 3 | 1 2 . . . Device 1 | . 1 . . . Storage 2 | 1 1 . . . Processor . | . . . . . Hackware . | . . . . . Protection . | . . . . . Artifact . | . . . . . Weapon 3 | 2 1 . . . Energy Gun 1 | 1 . . . . Energy Cannon . | . . . . . Ballistic Gun 1 | 1 . . . . Ballistic Cannon . | . . . . . Launcher 1 | . 1 . . . Special Weapon . | . . . . . Impact Weapon . | . . . . . Slashing Weapon . | . . . . . Piercing Weapon . | . . . . . Special Melee Weapon . | . . . . . Unidentified Prototypes . | . . . . . Parts Lost 4 | . . . . 4 Power 1 | . . . . 1 Propulsion 2 | . . . . 2 Utility . | . . . . . Weapon 1 | . . . . 1 Highest Loss Streak 4 | . . . . 4 To Critical Strikes . | . . . . . Average Slot Usage (%) 98 | . 98 100 100 92 Engine 9 | . 14 12 . . Core 4 | . . 1 14 11 Treads 27 | . 28 28 28 25 Device 13 | . 12 14 14 14 Storage 14 | . 14 14 14 14 Ballistic Gun 14 | . 14 14 14 14 Launcher 13 | . 13 14 14 11 Naked Turns . | . . . . . Heaviest Build 37 | 12 37 37 37 37 Greatest Support 40 | 40 40 40 40 40 Greatest Overweight (x) 1 | . . . . 1 Average Overweight (x) . | . . . . . Largest Inventory Capacity 15 | 8 15 15 15 15 Average Capacity 13 | 7 13 15 15 15 Most Carried 15 | 6 15 15 15 15 Average Carried 12 | 3 9 14 14 15 Final Capacity 15 | 8 15 15 15 15 Final Carried 15 | 6 15 15 15 15 Class Distribution -------------------- 100% | Mutant Dominant Class ---------------- Mutant | -10/Materials Mutant | -10/Mines Mutant | -10/Exiles Mutant | -9/Mines Resources | -11 -10 -10 -10 -9 ----------- Run | Yrd Mat Min Exi Min Matter Collected 483 | 183 184 116 . . Remotely . | . . . . . Salvage Created 244 | . 199 45 . . Parts 22 | . 20 2 . . Haulers Intercepted 1 | . 1 . . . Recyclers Shooed 3 | . 2 1 . . Parts Field Recycled . | . . . . . Retrieved Matter . | . . . . . Parts Self-Destructed . | . . . . . Prevented . | . . . . . Kills | -11 -10 -10 -10 -9 ------- Run | Yrd Mat Min Exi Min Combat Hostiles Destroyed 3 | . 2 1 . . AOE 3 | . 2 1 . . Classes Destroyed 6 | . 6 . . . Worker 1 | . 1 . . . Hauler 1 | . 1 . . . Recycler 1 | . 1 . . . Operator 1 | . 1 . . . Watcher 2 | . 2 . . . Grunt 3 | . 2 1 . . Best Kill Streak 3 | . 3 1 . . Combat Bots Only 2 | . 2 1 . . Max Kills in Single Turn 2 | . 2 1 . . Gunslinging . | . . . . . Exploded 2 | . 2 1 . . Melee . | . . . . . Uniques/NPCs Destroyed . | . . . . . Combat | -11 -10 -10 -10 -9 -------- Run | Yrd Mat Min Exi Min Hostile Shots Fired 21 | . 1 2 . 18 Missed 4 | . . . . 4 Damage Taken 766 | . 68 42 . 656 Core 223 | . 17 . . 206 Absorbed by Shields . | . . . . . Core Remaining (%) 100 | 100 . . . . Volleys Fired 11 | . 10 1 . . Largest 2 | . 2 2 . . Hottest 50 | . 50 50 . . Shots Fired 21 | . 19 2 . . Gun 11 | . 10 1 . . Cannon . | . . . . . Launcher 10 | . 9 1 . . Special . | . . . . . Kinetic 11 | . 10 1 . . Thermal . | . . . . . Explosive 10 | . 9 1 . . Electromagnetic . | . . . . . Robot Hit Streak 3 | . 3 2 . . Robot Miss Streak 3 | . 3 . . . Penetration Max . | . . . . . Secondary Targets . | . . . . . Shots Hit Robots 8 | . 6 2 . . Core Hits 16 | . 14 2 . . Critical Kills . | . . . . . Critical Parts Destroyed . | . . . . . Critical Strikes . | . . . . . Melee Attacks . | . . . . . Impact . | . . . . . Slashing . | . . . . . Piercing . | . . . . . Sneak Attacks . | . . . . . Combat Hostiles . | . . . . . Follow-up Attacks . | . . . . . Damage Inflicted 471 | . 425 43 . 3 Guns 44 | . 35 9 . . Cannons . | . . . . . Explosions 399 | . 370 29 . . Melee . | . . . . . Ramming 28 | . 20 5 . 3 Kinetic 44 | . 35 9 . . Thermal . | . . . . . Explosive 399 | . 370 29 . . Electromagnetic . | . . . . . Impact . | . . . . . Slashing . | . . . . . Piercing . | . . . . . Highest Corruption . | . . . . . Average Corruption . | . . . . . Corruption Purged . | . . . . . Corruption Blocked . | . . . . . Overload Shots . | . . . . . Overflow Damage . | . . . . . Projectiles . | . . . . . Explosions . | . . . . . Melee . | . . . . . Knockbacks . | . . . . . Impact . | . . . . . Kinetic . | . . . . . Secondary . | . . . . . Self-Inflicted Damage 65 | . 52 13 . . Shots 4 | . 3 1 . . Rammed 7 | . 4 2 . 1 Targets Rammed 7 | . 4 2 . 1 Kicked . | . . . . . Crushed . | . . . . . Highest Temperature 30 | . 30 22 . . Average Temperature 14 | . 14 14 . . Received Heat Transfer 30 | . 9 15 . 6 Siege Activations . | . . . . . Robots Corrupted . | . . . . . Combat Hostiles . | . . . . . Parts Fried . | . . . . . Impact Corruptions . | . . . . . Robots Melted . | . . . . . Combat Hostiles . | . . . . . Parts Melted . | . . . . . Heat Transferred . | . . . . . Parts Sabotaged . | . . . . . Parts Stolen . | . . . . . Parts Stripped . | . . . . . Power Chain Reactions . | . . . . . Alert | -11 -10 -10 -10 -9 ------- Run | Yrd Mat Min Exi Min Peak Influence 157 | . 157 91 . . Initial 31 | . . 31 . . Average 46 | . 71 30 . . Maximum Alert Level . | . . . . . Low Security (%) 100 | 100 100 100 . 100 Level 1 . | . . . . . Level 2 . | . . . . . Level 3 . | . . . . . Level 4 . | . . . . . Level 5 . | . . . . . High Security . | . . . . . Max Security . | . . . . . Squads Dispatched . | . . . . . Investigation . | . . . . . Extermination . | . . . . . Reinforcement . | . . . . . Assault . | . . . . . Garrison . | . . . . . Intercept . | . . . . . Searches Triggered . | . . . . . Construction Impeded . | . . . . . Haulers Reinforced . | . . . . . Active Scanning Responses . | . . . . . Cargo Convoy Interrupts . | . . . . . Stealth | -11 -10 -10 -10 -9 --------- Run | Yrd Mat Min Exi Min Distress Signals 2 | . 1 . . 1 Communications Jammed . | . . . . . Distress Signals . | . . . . . Times Spotted 22 | . 6 4 . 12 Peak Tracking Total 9 | . 3 2 . 9 Tactical Retreats . | . . . . . Traps | -11 -10 -10 -10 -9 ------- Run | Yrd Mat Min Exi Min Traps Triggered . | . . . . . Indirectly . | . . . . . Trap Hack Attempts . | . . . . . Triggered . | . . . . . Disarmed . | . . . . . Reprogrammed . | . . . . . Reused . | . . . . . Traps Extracted . | . . . . . Installed . | . . . . . Triggered . | . . . . . Machines | -11 -10 -10 -10 -9 ---------- Run | Yrd Mat Min Exi Min Machines Disabled 2 | . 2 . . . Max in Single Turn 1 | . 1 . . . Machines Repaired . | . . . . . Machines Dismantled . | . . . . . Machines Sabotaged . | . . . . . Overloaded Fab Kills . | . . . . . Hacking | -11 -10 -10 -10 -9 --------- Run | Yrd Mat Min Exi Min Machines Accessed 2 | . 2 . . . Terminals 2 | . 2 . . . Fabricators . | . . . . . Repair Stations . | . . . . . Recycling Units . | . . . . . Scanalyzers . | . . . . . Garrison Access . | . . . . . Total Hacks 10 | . 10 . . . Successful 5 | . 5 . . . Failed 5 | . 5 . . . Catastrophic 1 | . 1 . . . Database Lockouts . | . . . . . Manual 6 | . 5 . 1 . Terminals 10 | . 10 . . . Fabricators . | . . . . . Repair Stations . | . . . . . Recycling Units . | . . . . . Scanalyzers . | . . . . . Garrison Access . | . . . . . Terminal Hacks 5 | . 5 . . . Record 2 | . 2 . . . Terminal Index 1 | . 1 . . . Registered Components 1 | . 1 . . . Zone Layout 1 | . 1 . . . Fabricator Hacks . | . . . . . Repair Station Hacks . | . . . . . Recycling Unit Hacks . | . . . . . Scanalyzer . | . . . . . Garrison Access Hacks . | . . . . . Unauthorized Hacks . | . . . . . Terminals . | . . . . . Fabricators . | . . . . . Repair Stations . | . . . . . Recycling Units . | . . . . . Scanalyzers . | . . . . . Garrison Access . | . . . . . Data Cores Recovered . | . . . . . Used . | . . . . . Hacking Detections 2 | . 2 . . . Full Trace Events . | . . . . . Feedback Events . | . . . . . Feedback Blocked . | . . . . . Robot Schematics Acquired . | . . . . . Robots Built . | . . . . . Authchips . | . . . . . Time . | . . . . . Total Robot Build Rating . | . . . . . Part Schematics Acquired . | . . . . . Parts Built . | . . . . . Authchips . | . . . . . Time . | . . . . . Total Part Build Rating . | . . . . . Parts Repaired . | . . . . . Time . | . . . . . Parts Recycled . | . . . . . Recycled Matter . | . . . . . Retrieved Matter . | . . . . . Retrieved Components . | . . . . . Parts Scanalyzed . | . . . . . Part Schematics Acquired . | . . . . . Parts Damaged . | . . . . . Bothacking | -11 -10 -10 -10 -9 ------------ Run | Yrd Mat Min Exi Min Used RIF Installer . | . . . . . Robots Hacked . | . . . . . Non-combat . | . . . . . Combat . | . . . . . Robot Hacks Applied . | . . . . . Relay Couplers Released . | . . . . . Fabnet Peak Effective % . | . . . . . Robots Rewired . | . . . . . Allies Hacked . | . . . . . Hacks Repelled . | . . . . . Allies | -11 -10 -10 -10 -9 -------- Run | Yrd Mat Min Exi Min Total Allies 4 | . . 4 . . Largest Group 4 | . . 4 . . Highest-Rated Group 71 | . . 71 . . Highest-Rated Ally 31 | . . 31 . . Total Orders . | . . . . . Ally Attacks 28 | . . 28 . . Total Damage 371 | . . 371 . . Kills 3 | . . 3 . . Allies Corrupted . | . . . . . Allies Melted . | . . . . . Intel | -11 -10 -10 -10 -9 ------- Run | Yrd Mat Min Exi Min Robot Analysis Total . | . . . . . Derelict Logs Recovered 1 | . . 1 . . Drone Launches . | . . . . . Drone Recoveries . | . . . . . Exploration | -11 -10 -10 -10 -9 ------------- Run | Yrd Mat Min Exi Min Turns Passed 1656 | 90 605 486 411 64 Spaces Moved 988 | 51 349 295 256 37 Core 5 | 5 . . . . Treads 983 | 46 349 295 256 37 Legs . | . . . . . Wheels . | . . . . . Hover . | . . . . . Flight . | . . . . . Fastest Speed 50 | 50 160 160 160 160 Average Speed 159 | 149 160 160 160 166 Slowest Speed 240 | 160 160 160 160 240 Overloaded Moves . | . . . . . Propulsion Burnouts . | . . . . . Robots Hopped . | . . . . . Cave-ins Triggered . | . . . . . Exploration Rate (%) 33 | 3 45 57 49 15 Regions Visited 4 Branch Regions 3 Pre-discovered Areas 1 | . . 1 . . Known Exits Taken . | . . . . . Unknown Exits Taken 4 | 1 1 1 1 . Scrap Searched 1 | . . 1 . . Spaces Dug . | . . . . . Terrain Destroyed 65 | . 54 11 . . Melee . | . . . . . Projectile . | . . . . . AOE 65 | . 54 11 . . Terrain Rammed . | . . . . . Walls Destroyed . | . . . . . Machines Disabled . | . . . . . Actions | -11 -10 -10 -10 -9 --------- Run | Yrd Mat Min Exi Min Total 1043 | 62 377 306 260 38 Wait 6 | . . 6 . . Move 984 | 50 348 294 255 37 Hop . | . . . . . Pick Up 17 | 6 9 1 1 . Fast Attach 8 | 6 2 . . . Attach . | . . . . . Detach 1 | . 1 . . . Swap 2 | . 1 1 . . Drop 7 | . 2 1 4 . Fire 11 | . 10 1 . . Melee . | . . . . . Ram . | . . . . . Kick . | . . . . . Crush 7 | . 4 2 . 1 Escape Stasis . | . . . . . Rewire . | . . . . . Trap . | . . . . . Miscellaneous . | . . . . . Route ------- -11/Scrapyard -10/Materials (discovered 2 exits: [*Mat] / [*Min]) -10/Mines (discovered 3 exits: [*Mat x2] / *Exi) -10/Exiles -9/Mines History --------- Turn | Location | Event 10 | -11/Scrapyard | Discovered new exit (range 15) 91 | -11/Scrapyard | Entered Materials 277 | -10/Materials | Discovered new exit (range 14) 308 | -10/Materials | Build established: Mutant 378 | -10/Materials | Discovered new exit (range 13) 696 | -10/Materials | Entered Mines 699 | -10/Mines | Received a Mining Laser from a helpful Derelict 735 | -10/Mines | A weapon hastily lodged in a ceiling crevice suddenly fell to the ground 789 | -10/Mines | Discovered new exit (range 13) 813 | -10/Mines | Assisted by bots powering up and referring to "LRC-V3" 1020 | -10/Mines | Learned location of Zion (-7) 1058 | -10/Mines | Discovered new exit (range 6) 1174 | -10/Mines | Deemed a non-threat by the Exiles lab entrance 1175 | -10/Mines | Discovered new exit (range 5) 1182 | -10/Mines | Entered Exiles 1221 | -10/Exiles | Met 8R-AWN 1250 | -10/Exiles | Met EX-HEX 1296 | -10/Exiles | Met EX-BIN 1323 | -10/Exiles | Aligned with FarCom system 1325 | -10/Exiles | Given EX-Vault access code 1365 | -10/Exiles | Opened EX-Vault 1389 | -10/Exiles | Found Prototype Ballistic Gun 1425 | -10/Exiles | Warned to stay clear of 0b10 Research branches 1472 | -10/Exiles | Met EX-DEC 1573 | -10/Exiles | Discovered new exit (range 15) 1593 | -10/Exiles | Left Exiles lab with XL Autogun Array 1593 | -10/Exiles | Entered Mines 1594 | -9/Mines | Assembled infested the area 1599 | -9/Mines | Assisted by a Guerilla fighting off Assembled 1648 | -9/Mines | Core integrity fell below 50% 1650 | -9/Mines | Met a Derelict who couldn't figure out how to use a Trap Extractor 1654 | -9/Mines | Core integrity fell below 20% 1657 | -9/Mines | Self-destructed Last Messages --------------- 01643_ Lgt. Nuclear Core destroyed. 01643_ as-33376 destroyed. 01643_ as-34618 destroyed. 01647_ as-90514 destroyed. 01647_ as-63766 destroyed. 01647_ as-34486 destroyed. 01647_ as-97713 destroyed. 01649_ SHOP.Sys disabled. 01649_ Lgt. Treads destroyed. 01649_ Grenade Launcher destroyed. 01650_ 9O-P29(g): "So I found this thing but I have no idea how to use it. And who the hell trapped this place to begin with?!" 01650_ 9O-P29(g): "I give up! Here you try, I'm outta here before something nasty happens..." 01650_ Tosses Imp. Trap Extractor to the ground. 01652_ The unstable cave ceiling collapses. 01655_ Lgt. Treads destroyed. 01655_ 9O-P29(g) destroyed. 01655_ Machine disabled. 01657_ L-31 Rogue destroyed. Map ----- +----------------------------------------------------+ | ??????????????????????????????????????????????#### | | ???????????????????????????????????#####?????# # | | ??????????????????????????????????## ##???# | | ??????????????????????????????????# #### | | ??????????????????????????????????# ## # | | ??????????????????????????????????# #? | | ??????????????????????????????????## ##? | | ???????????????????????????????????# ### ####?? | | ???????????????????????????????????## ##?# #????? | | ????????????????????????????????????####??# #????? | | ??????????????????????????????????????????# #????? | | ??????????????????????????????????????????# #????? | | ??????????????????????????????????????????# #????? | | ??????????????????????????????????????????# #????? | | ??????????????????????????????????????????# ##### | | ??????????????????????????????????###?????# % | | ??????????????????????????????#### #####?## ##### | | ?????????????????????????###### # #### #???? | | ?????????????????????###### # # ## #???? | | ?????????????????????#"*# % #???? | | ?????????????????????#"= / ]% ####???? | | ?????????????????????#"|^ " d ###??????? | | ????????????????????## = " d #??????? | | ????????????????????# ####???????? | | ????????????????????# ###??????????? | | ????????????????????# @ #???????????? | | ????????????????????## #??????????? | | ??????????????????? a % #??????????? | | ??????????????????#### ##??????????? | | ?????????????????????### ## ## #######???????????? | | ???????????????????????#g??#####?????????????????? | | ???????????????????????% ????????????????????????? | | ???????????????????????##????????????????????????? | | ?????????????????????????????????????????????????? | | ?????????????????????????????????????????????????? | | ??????????????????b??????????????????????????????? | | ?????????????????????????????????????????????????? | | ????????????????g????????????????????????????????? | | ?????????????????????????????????????????????????? | | ?????????????????????????????????????????????????? | | ?????????????????????????????????????????????????? | | ?????????????????????????????????????????????????? | | ?????????????????????????????????????????????????? | | ?????????????????????????????????????????????????? | | ?????????????????????????????????????????????????? | | ?????????????????????????????????????????????????? | | ?????????????????????????????????????????????????? | | ?????????????????????????????????????????????????? | | ?????????????????????????????????????????????????? | | ?????????????????????????????????????????????????? | +----------------------------------------------------+ Best States ------------- Heat Dissipation 25 Energy Generation 14 Energy Capacity 250 Matter Stores 300 Matter Capacity 300 Sight Range 16 Terrain Scan Density 10 Evasion (%) 40 Recoil Reduction 2 Item Schematics ----------------- None Robot Schematics ------------------ None Fabricated ------------ Nothing Alien Tech Used ----------------- None Achievements -------------- None Challenges ------------ None Game ------ Seed ThermicFortressScreen Manual? 0 Play Time 00:14:57 Cumulative 9.7 hours Start 2024.04.09 @ 17:35:57 End 2024.04.09 @ 17:50:23 Sessions 1 Manual Loads 0 Difficulty Rogue Special Mode None Game No. 18 Rogue 18 Adventurer 0 Explorer 0 Win Type - Total 0 Types 0/0/0/0/0/0/0/0/0 Lore% 15 Gallery% 12 Achievement% 16 Wizard Run 0 Options --------- Layout 0 ASCII 0 Keyboard 1 Movement Numpad Keybinds 0 Fullscreen 1 Font 18/SmallcapsGlow Map View 76x50 Zoom Use 0% Tactical HUD 1 Map Filters NONE Filters NONE Steam 1 RUN: 5730fc25-cef3-47d9-a9ea-f3fc4ad3c150